bitfinex/quotes_SOLUSD_20240613
["timestamp","ask_amount","ask_price","bid_price","bid_amount"]
[1718286721289,0.17,150.58,150.55,10.0]
[1718286721461,145.68,150.58,150.55,10.0]
[1718286721782,0.17,150.56,150.55,10.0]
[1718286722084,100.68,150.56,150.53,10.0]
[1718286722255,0.17,150.52,150.47,10.8125968]
[1718286722455,0.68,150.52,150.5,10.0]
[1718286722658,20.68,150.52,150.5,10.0]
[1718286722858,20.68,150.52,150.48,10.0]
[1718286723058,20.51,150.52,150.5,10.0]
[1718286723273,0.51,150.52,150.5,10.0]
[1718286723673,0.17,150.51,150.5,10.0]
[1718286723868,0.68,150.51,150.48,10.0]
[1718286724072,0.17,150.5,150.47,0.8125968]
[1718286724262,100.51,150.5,150.47,0.8125968]
[1718286724578,145.37,150.53,150.5,10.0]
[1718286724579,0.17,150.52,150.5,10.0]
[1718286724796,0.34,150.52,150.5,10.0]
[1718286725161,0.17,150.52,150.5,10.0]
[1718286725473,100.0,150.54,150.48,10.0]
[1718286725678,20.0,150.53,150.48,10.0]
[1718286725877,100.0,150.52,150.48,10.0]
[1718286726060,20.0,150.51,150.48,10.0]
[1718286726259,20.0,150.51,150.47,0.8125968]
[1718286726260,20.0,150.51,150.5,10.0]
[1718286726485,106.2476,150.58,150.53,10.0]
[1718286727177,113.10097783,150.58,150.53,10.0]
[1718286727582,100.0,150.55,150.49,10.0]
[1718286727771,0.17,150.52,150.47,10.8125968]
[1718286727973,120.68,150.52,150.47,10.8125968]
[1718286728862,120.68,150.52,150.47,0.8125968]
[1718286728863,0.17,150.49,150.47,0.8125968]
[1718286729065,0.17,150.47,150.41,10.0]
[1718286729280,0.17,150.47,150.45,10.0]
[1718286730095,0.51,150.48,150.41,10.0]
[1718286730096,0.17,150.45,150.41,10.0]
[1718286730465,20.68,150.45,150.41,10.0]
[1718286730661,0.17,150.43,150.38,16.3392]
[1718286730867,0.34,150.43,150.4,10.0]
[1718286731091,0.17,150.42,150.4,10.0]
[1718286731274,20.34,150.43,150.4,10.0]
[1718286731470,0.17,150.43,150.4,10.0]
[1718286732197,100.17,150.43,150.4,10.0]
[1718286732367,0.51,150.42,150.38,10.0]
[1718286732691,0.17,150.41,150.4,10.0]
[1718286732877,100.10232213,150.51,150.44,10.0]
[1718286733076,130.0,150.49,150.42,10.0]
[1718286733396,130.0,150.49,150.4,10.0]
[1718286733397,100.0,150.45,150.4,10.0]
[1718286733580,100.0,150.43,150.36,10.0]
[1718286733784,100.0,150.43,150.38,10.0]
[1718286734099,100.0,150.43,150.36,10.0]
[1718286734394,20.68,150.42,150.36,10.0]
[1718286735296,20.51,150.42,150.38,10.0]
[1718286735594,0.34,150.42,150.4,10.0]
[1718286735765,0.17,150.42,150.4,10.0]
[1718286735967,0.17,150.42,150.38,10.0]
[1718286736163,0.51,150.42,150.38,10.0]
[1718286736898,0.51,150.42,150.33,10.0]
[1718286736899,0.17,150.39,150.33,10.0]
[1718286737121,0.17,150.39,150.35,10.0]
[1718286737406,130.17,150.42,150.35,10.0]
[1718286737584,0.17,150.41,150.37,10.0]
[1718286737779,30.0,150.42,150.4,10.0]
[1718286738284,125.37,150.47,150.4,10.0]
[1718286738705,132.23848993,150.47,150.4,10.0]
[1718286739290,32.23848993,150.47,150.4,10.0]
[1718286739623,100.0,150.46,150.41,10.0]
[1718286739784,100.0,150.46,150.32,0.8125968]
[1718286739785,200.0,150.43,150.36,10.0]
[1718286739984,100.0,150.41,150.36,10.0]
[1718286740199,100.0,150.41,150.34,10.0]
[1718286740200,125.37,150.41,150.34,10.0]
[1718286740506,225.37,150.41,150.36,10.0]
[1718286740808,10.0,150.43,150.42,10.0]
[1718286741011,50.0,150.43,150.42,10.0]
[1718286741185,50.0,150.43,150.4,10.0]
[1718286741696,20.0,150.43,150.4,10.0]
[1718286742093,20.0,150.44,150.4,10.0]
[1718286742483,106.2476,150.5,150.42,10.0]
[1718286742682,100.0,150.5,150.44,10.0]
[1718286742884,30.0,150.45,150.44,10.0]
[1718286743111,30.0,150.45,150.42,10.0]
[1718286743278,30.0,150.45,150.39,2.4602]
[1718286743279,30.0,150.45,150.44,10.0]
[1718286743484,486.3,150.54,150.47,10.0]
[1718286743683,493.16682551,150.54,150.47,10.0]
[1718286743922,493.16682551,150.54,150.49,10.0]
[1718286744096,106.86682551,150.54,150.49,10.0]
[1718286744423,100.0,150.55,150.49,10.0]
[1718286744937,110.0,150.57,150.51,10.0]
[1718286745217,110.0,150.57,150.49,10.0]
[1718286745218,100.0,150.57,150.49,10.0]
[1718286745431,100.0,150.57,150.43,6.3392]
[1718286745432,6.86525623,150.57,150.52,10.0]
[1718286745602,106.86525623,150.57,150.52,10.0]
[1718286746334,100.0,150.54,150.47,10.0]
[1718286746629,30.0,150.53,150.47,10.0]
[1718286746930,0.17,150.52,150.47,10.0]
[1718286747217,120.17,150.52,150.47,10.0]
[1718286747421,0.34,150.51,150.47,10.0]
[1718286748724,0.17,150.51,150.49,10.0]
[1718286748910,0.17,150.51,150.43,6.3392]
[1718286748911,30.17,150.53,150.51,10.0]
[1718286749107,30.0,150.53,150.51,10.0]
[1718286749808,6.86525623,150.57,150.51,10.0]
[1718286750706,6.86525623,150.57,150.53,10.0]
[1718286751017,20.0,150.56,150.53,10.0]
[1718286752469,6.86525623,150.57,150.53,10.0]
[1718286752762,100.0,150.62,150.55,10.0]
[1718286752935,106.87195888,150.62,150.57,10.0]
[1718286753857,106.87195888,150.62,150.51,6.3392]
[1718286753858,100.0,150.59,150.53,10.0]
[1718286754744,20.34,150.58,150.53,10.0]
[1718286755124,0.17,150.57,150.53,10.0]
[1718286755635,20.34,150.58,150.55,10.0]
[1718286755840,0.17,150.58,150.55,10.0]
[1718286756151,0.34,150.58,150.55,10.0]
[1718286756358,0.17,150.58,150.55,10.0]
[1718286756651,0.17,150.58,150.53,10.0]
[1718286756858,0.17,150.58,150.55,10.0]
[1718286757157,0.17,150.58,150.53,10.0]
[1718286757337,20.34,150.58,150.53,10.0]
[1718286757537,0.34,150.57,150.53,10.0]
[1718286757738,0.17,150.56,150.53,10.0]
[1718286758352,20.17,150.58,150.53,10.0]
[1718286758559,20.0,150.58,150.53,10.0]
[1718286758846,0.17,150.57,150.53,10.0]
[1718286759061,20.0,150.58,150.53,10.0]
[1718286759263,20.0,150.58,150.55,10.0]
[1718286759432,20.0,150.6,150.55,10.0]
[1718286759757,20.0,150.6,150.53,10.0]
[1718286759758,100.0,150.58,150.53,10.0]
[1718286760170,100.0,150.56,150.53,10.0]
[1718286760473,0.34,150.55,150.53,10.0]
[1718286760759,100.51,150.54,150.53,10.0]
[1718286760961,120.68,150.54,150.49,10.0]
[1718286761142,20.34,150.53,150.49,10.0]
[1718286761475,0.17,150.52,150.51,10.0]
[1718286761841,100.34,150.52,150.49,10.0]
[1718286762038,20.34,150.51,150.49,10.0]
[1718286763739,0.17,150.52,150.49,10.0]
[1718286764073,20.34,150.53,150.52,10.0]
[1718286764458,20.34,150.53,150.49,10.0]
[1718286764662,0.34,150.53,150.51,10.0]
[1718286764965,0.17,150.52,150.51,10.0]
[1718286765383,0.17,150.54,150.51,10.0]
[1718286765539,20.0,150.55,150.51,10.0]
[1718286765744,20.0,150.55,150.53,10.0]
[1718286765943,20.0,150.56,150.53,10.0]
[1718286766874,100.0,150.55,150.5,10.0]
[1718286767081,100.0,150.55,150.47,6.3392]
[1718286767082,20.0,150.56,150.52,10.0]
[1718286767280,20.0,150.56,150.54,10.0]
[1718286767644,0.17,150.55,150.54,10.0]
[1718286768849,0.17,150.57,150.54,10.0]
[1718286769054,0.17,150.57,150.56,10.0]
[1718286769365,0.17,150.57,150.54,10.0]
[1718286769867,100.17,150.57,150.5,10.0]
[1718286770075,20.51,150.56,150.5,10.0]
[1718286770253,0.17,150.55,150.52,10.0]
[1718286770572,20.0,150.56,150.52,10.0]
[1718286770960,112.21702677,150.6,150.52,10.0]
[1718286770961,100.17,150.57,150.52,10.0]
[1718286771174,0.17,150.55,150.52,10.0]
[1718286771572,0.17,150.55,150.5,10.0]
[1718286772157,0.17,150.55,150.52,10.0]
[1718286773085,0.17,150.58,150.55,10.0]
[1718286773274,100.0,150.59,150.55,10.0]
[1718286774774,0.34,150.58,150.55,10.0]
[1718286774971,0.34,150.59,150.55,10.0]
[1718286775357,0.17,150.59,150.55,10.0]
[1718286775562,0.17,150.59,150.57,10.0]
[1718286775867,0.17,150.59,150.55,10.0]
[1718286776364,0.34,150.6,150.57,10.0]
[1718286776566,20.17,150.61,150.55,10.0]
[1718286776770,0.17,150.6,150.55,10.0]
[1718286776969,0.17,150.6,150.57,10.0]
[1718286777575,0.17,150.6,150.48,4.9175]
[1718286777576,0.17,150.59,150.55,10.0]
[1718286777766,0.51,150.59,150.55,10.0]
[1718286777967,0.17,150.58,150.55,10.0]
[1718286778169,0.34,150.58,150.55,10.0]
[1718286778370,0.17,150.57,150.55,10.0]
[1718286778571,0.51,150.57,150.53,10.0]
[1718286778767,100.0,150.55,150.5,10.0]
[1718286778977,100.0,150.55,150.47,6.3392]
[1718286778978,20.51,150.54,150.48,10.0]
[1718286779287,20.51,150.54,150.47,6.3392]
[1718286779288,0.17,150.52,150.5,10.0]
[1718286779581,20.51,150.52,150.5,10.0]
[1718286781286,20.0,150.52,150.5,10.0]
[1718286781693,0.17,150.53,150.5,10.0]
[1718286782259,106.6329464,150.6,150.54,10.0]
[1718286782565,100.0,150.6,150.54,10.0]
[1718286782970,100.0,150.6,150.52,6.3392]
[1718286782971,100.0,150.6,150.56,10.0]
[1718286783291,100.0,150.6,150.54,10.0]
[1718286783663,100.0,150.6,150.56,10.0]
[1718286784257,100.0,150.6,150.54,10.0]
[1718286784462,20.0,150.59,150.56,10.0]
[1718286784662,0.17,150.58,150.56,10.0]
[1718286784870,100.0,150.6,150.56,10.0]
[1718286784871,0.17,150.59,150.56,10.0]
[1718286785096,0.51,150.59,150.56,10.0]
[1718286785961,20.51,150.59,150.56,10.0]
[1718286786159,20.51,150.59,150.54,10.0]
[1718286786383,100.34,150.58,150.54,10.0]
[1718286786593,0.17,150.55,150.54,10.0]
[1718286786789,0.34,150.55,150.54,10.0]
[1718286786981,0.34,150.55,150.5,10.0]
[1718286786982,0.68,150.55,150.5,10.0]
[1718286787297,0.34,150.54,150.5,10.0]
[1718286787972,20.0,150.57,150.5,10.0]
[1718286788169,0.34,150.56,150.52,10.0]
[1718286788599,0.17,150.55,150.52,10.0]
[1718286789198,0.17,150.54,150.52,10.0]
[1718286789367,0.51,150.54,150.52,10.0]
[1718286789574,0.17,150.53,150.52,10.0]
[1718286790871,0.51,150.54,150.52,10.0]
[1718286791598,0.17,150.54,150.52,10.0]
[1718286792594,100.0,150.6,150.52,10.0]
[1718286792765,100.0,150.6,150.54,10.0]
[1718286793372,100.0,150.6,150.56,10.0]
[1718286793573,100.0,150.6,150.54,10.0]
[1718286793803,100.0,150.6,150.56,10.0]
[1718286793962,100.0,150.6,150.54,10.0]
[1718286794377,106.90290356,150.6,150.54,10.0]
[1718286794692,20.0,150.59,150.54,10.0]
[1718286795587,0.51,150.58,150.54,10.0]
[1718286795885,0.51,150.58,150.56,10.0]
[1718286796092,0.34,150.58,150.56,10.0]
[1718286796275,0.17,150.58,150.56,10.0]
[1718286796779,0.17,150.58,150.54,10.0]
[1718286797281,20.0,150.59,150.56,10.0]
[1718286797486,100.0,150.62,150.58,10.0]
[1718286797683,20.0,150.6,150.58,10.0]
[1718286798388,20.0,150.61,150.58,10.0]
[1718286798593,100.51,150.6,150.58,10.0]
[1718286798791,0.17,150.59,150.56,10.0]
[1718286799100,0.17,150.59,150.53,2.4578]
[1718286799101,0.17,150.6,150.58,10.0]
[1718286799397,106.91376152,150.64,150.61,10.0]
[1718286799698,106.91376152,150.64,150.43,100.0]
[1718286799699,668.99675141,150.69,150.64,10.0]
[1718286800088,668.99675141,150.69,150.62,10.0]
[1718286800894,20.0,150.67,150.62,10.0]
[1718286802002,20.0,150.67,150.64,10.0]
[1718286802178,0.17,150.66,150.64,10.0]
[1718286802701,0.17,150.67,150.64,10.0]
[1718286802702,0.34,150.67,150.64,10.0]
[1718286803578,20.34,150.67,150.64,10.0]
[1718286803781,0.17,150.65,150.62,10.0]
[1718286803991,0.68,150.65,150.62,10.0]
[1718286804305,393.21162861,150.68,150.66,10.0]
[1718286804501,386.3,150.68,150.64,10.0]
[1718286804680,386.3,150.68,150.66,10.0]
[1718286804878,388.7555,150.68,150.66,10.0]
[1718286805093,386.3,150.68,150.66,10.0]
[1718286805477,388.7556,150.68,150.66,10.0]
[1718286805685,2.4556,150.67,150.66,10.0]
[1718286805905,386.3,150.68,150.66,10.0]
[1718286807282,10.0,150.72,150.68,10.0]
[1718286807773,2.4552,150.7,150.68,10.0]
[1718286807980,2.4553,150.69,150.68,10.0]
[1718286808280,2.4552,150.7,150.68,10.0]
[1718286808494,0.17,150.69,150.68,10.0]
[1718286808893,0.34,150.71,150.68,10.0]
[1718286809089,0.17,150.7,150.68,10.0]
[1718286809491,0.34,150.7,150.68,10.0]
[1718286809692,0.17,150.69,150.68,10.0]
[1718286809885,2.7953,150.69,150.68,10.0]
[1718286810096,0.17,150.67,150.63,10.0]
[1718286810405,2.4561,150.64,150.63,10.0]
[1718286810609,2.4566,150.61,150.55,6.3392]
[1718286810790,2.4567,150.61,150.55,6.3392]
[1718286810990,0.17,150.6,150.55,6.3392]
[1718286812116,20.17,150.63,150.55,8.7968]
[1718286812411,120.0,150.63,150.55,6.3392]
[1718286812622,4.9136,150.6,150.55,6.3392]
[1718286812916,0.17,150.59,150.55,6.3392]
[1718286813586,0.17,150.59,150.52,6.3392]
[1718286815120,0.17,150.6,150.52,6.3392]
[1718286815328,0.17,150.6,150.53,2.4579]
[1718286815618,0.17,150.6,150.52,8.7973]
[1718286815937,2.4568,150.6,150.52,6.3392]
[1718286816259,2.4574,150.57,150.52,6.3392]
[1718286816519,22.967,150.59,150.52,6.3392]
[1718286817331,0.17,150.59,150.52,6.3392]
[1718286817624,2.9671,150.59,150.52,6.3392]
[1718286817791,0.17,150.59,150.52,6.3392]
[1718286818795,2.4567,150.61,150.52,8.7973]
[1718286818995,0.17,150.6,150.53,2.4579]
[1718286819193,0.17,150.61,150.54,2.4577]
[1718286819396,22.4562,150.64,150.54,2.4577]
[1718286819701,20.0,150.63,150.54,2.4577]
[1718286819908,2.4564,150.63,150.54,2.4577]
[1718286820218,2.4562,150.64,150.54,2.4577]
[1718286820421,2.4563,150.63,150.54,2.4577]
[1718286820803,0.17,150.62,150.54,2.4577]
[1718286820998,2.6262,150.64,150.55,2.4576]
[1718286821328,2.6263,150.63,150.54,2.4577]
[1718286822117,2.4562,150.64,150.55,2.4576]
[1718286822290,2.4564,150.63,150.54,2.7977]
[1718286822492,2.4562,150.64,150.55,2.4576]
[1718286823421,2.4558,150.66,150.57,2.4572]
[1718286823628,2.456,150.65,150.57,2.4572]
[1718286823794,20.49675141,150.67,150.59,2.4569]
[1718286824215,22.95245141,150.67,150.58,8.7962]
[1718286824421,7.3653,150.71,150.58,6.3392]
[1718286824728,2.4556,150.68,150.59,2.7969]
[1718286825238,22.0957,150.71,150.59,2.7969]
[1718286825239,2.4556,150.67,150.59,2.7969]
[1718286825390,4.9108,150.69,150.58,6.3392]
[1718286825705,2.4558,150.67,150.58,8.7962]
[1718286826718,2.6259,150.66,150.58,6.3392]
[1718286827625,2.456,150.65,150.58,6.3392]
[1718286827789,0.17,150.64,150.58,6.3392]
[1718286827989,2.4559,150.66,150.58,6.3392]
[1718286828226,2.4559,150.66,150.58,8.7963]
[1718286828406,2.9657,150.67,150.58,8.7963]
[1718286828606,0.17,150.66,150.58,8.7963]
[1718286828806,2.6258,150.66,150.58,8.7963]
[1718286829026,2.6258,150.66,150.58,6.3392]
[1718286829328,2.4564,150.63,150.58,6.3392]
[1718286829538,2.6265,150.62,150.54,6.3392]
[1718286829840,0.17,150.63,150.54,8.7969]
[1718286829995,2.7964,150.63,150.54,8.7969]
[1718286830199,0.17,150.62,150.54,8.7969]
[1718286830421,0.17,150.62,150.55,2.4576]
[1718286830737,2.6266,150.62,150.54,6.3392]
[1718286831311,2.4566,150.61,150.54,6.3392]
[1718286831730,2.6265,150.62,150.54,6.3392]
[1718286831931,0.17,150.62,150.54,6.3392]
[1718286832228,2.4572,150.58,150.54,6.3392]
[1718286832606,2.4572,150.58,150.5,6.3392]
[1718286832812,0.17,150.57,150.5,8.7976]
[1718286833608,0.51,150.58,150.51,2.4582]
[1718286834006,0.51,150.58,150.5,8.7975]
[1718286834408,0.17,150.57,150.5,6.3392]
[1718286834720,2.4575,150.56,150.5,6.3392]
[1718286834902,0.17,150.55,150.5,6.3392]
[1718286835520,0.34,150.56,150.5,6.3392]
[1718286836141,0.17,150.56,150.5,6.3392]
[1718286836417,0.17,150.58,150.5,6.3392]
[1718286836637,0.17,150.58,150.5,8.7975]
[1718286836922,0.17,150.58,150.51,2.4582]
[1718286837827,0.17,150.58,150.5,6.3392]
[1718286838124,0.17,150.57,150.5,8.7976]
[1718286838430,0.17,150.58,150.52,2.458]
[1718286838941,0.34,150.59,150.52,2.458]
[1718286839116,0.51,150.6,150.52,2.458]
[1718286839316,0.51,150.6,150.53,2.4579]
[1718286840048,0.51,150.6,150.52,2.458]
[1718286840250,0.17,150.6,150.53,2.4579]
[1718286840418,22.4566,150.62,150.5,13.7144]
[1718286840419,2.4566,150.61,150.52,2.458]
[1718286841337,2.4568,150.6,150.52,2.458]
[1718286841538,0.17,150.59,150.52,2.458]
[1718286841745,0.34,150.59,150.52,2.458]
[1718286842236,2.797,150.59,150.51,2.4582]
[1718286842755,0.34,150.59,150.52,2.4581]
[1718286843123,0.51,150.6,150.52,2.4581]
[1718286843312,0.51,150.6,150.5,11.256]
[1718286843313,0.17,150.6,150.51,4.9165]
[1718286843530,0.17,150.61,150.54,2.4576]
[1718286843752,5.2536,150.61,150.5,6.3392]
[1718286843954,5.2536,150.61,150.51,2.4582]
[1718286843955,2.457,150.59,150.51,2.4582]
[1718286844241,0.17,150.58,150.51,2.4582]
[1718286844459,0.51,150.58,150.51,2.4582]
[1718286844618,0.17,150.6,150.52,2.458]
[1718286844821,2.6267,150.61,150.52,2.458]
[1718286845060,2.4572,150.58,150.5,8.7976]
[1718286845351,0.17,150.57,150.5,8.7976]
[1718286846454,0.17,150.57,150.51,2.4582]
[1718286846657,0.34,150.58,150.51,2.4582]
[1718286847335,0.34,150.58,150.5,8.7975]
[1718286848240,0.34,150.58,150.51,2.4582]
[1718286849239,2.7971,150.58,150.5,8.7975]
[1718286849433,0.34,150.58,150.51,2.4582]
[1718286849639,0.34,150.58,150.51,4.9165]
[1718286849974,0.34,150.58,150.52,2.458]
[1718286850459,0.34,150.58,150.51,2.4582]
[1718286851361,0.17,150.58,150.52,2.4581]
[1718286851570,20.0,150.61,150.53,12.2898]
[1718286851737,20.0,150.62,150.57,2.4572]
[1718286851945,22.95265141,150.66,150.56,4.9149]
[1718286852250,2.4561,150.65,150.57,2.4572]
[1718286852449,2.4562,150.64,150.56,2.4574]
[1718286852659,2.4565,150.62,150.53,2.4578]
[1718286852960,0.17,150.61,150.54,2.4577]
[1718286853764,0.17,150.61,150.52,4.916]
[1718286853765,0.17,150.61,150.53,9.8317]
[1718286853967,20.17,150.63,150.53,9.8317]
[1718286853968,0.17,150.62,150.56,2.4573]
[1718286854468,2.7963,150.63,150.52,4.9161]
[1718286854766,0.34,150.62,150.55,2.4576]
[1718286854954,0.17,150.61,150.52,12.2904]
[1718286855161,0.17,150.61,150.55,2.4575]
[1718286855552,0.17,150.61,150.56,2.4574]
[1718286856068,0.17,150.64,150.54,12.2888]
[1718286856267,0.68,150.64,150.54,12.2888]
[1718286856474,0.68,150.64,150.57,2.4573]
[1718286856845,0.68,150.64,150.56,2.4574]
[1718286857063,2.4561,150.65,150.56,2.4574]
[1718286857257,22.95265141,150.66,150.57,2.4572]
[1718286857459,22.95265141,150.66,150.58,2.457]
[1718286857850,20.0,150.65,150.58,2.457]
[1718286858375,2.4561,150.64,150.56,2.4574]
[1718286858558,2.6261,150.64,150.56,2.4574]
[1718286858872,0.17,150.64,150.56,2.4574]
[1718286859176,2.4566,150.61,150.53,2.4579]
[1718286859348,5.2532,150.62,150.51,27.8782]
[1718286859548,5.2532,150.62,150.52,2.4581]
[1718286859549,2.4569,150.6,150.52,2.4581]
[1718286859770,0.17,150.59,150.51,27.8782]
[1718286859950,0.17,150.59,150.52,2.4581]
[1718286860145,0.17,150.62,150.51,35.2532]
[1718286860460,2.4565,150.62,150.54,2.4577]
[1718286860664,0.17,150.61,150.54,2.4577]
[1718286860867,2.6265,150.62,150.54,2.4577]
[1718286861065,0.17,150.61,150.54,2.4577]
[1718286861255,2.6265,150.62,150.54,2.4577]
[1718286861256,0.17,150.63,150.56,2.4574]
[1718286861453,0.34,150.63,150.52,4.916]
[1718286861654,2.4566,150.62,150.52,4.916]
[1718286861875,0.17,150.61,150.52,2.458]
[1718286862085,2.4568,150.6,150.52,2.458]
[1718286862391,0.17,150.58,150.46,6.3392]
[1718286862689,50.51,150.58,150.43,25.42]
[1718286862851,0.17,150.53,150.43,25.42]
[1718286863050,0.17,150.56,150.44,4.9186]
[1718286863247,0.51,150.56,150.44,4.9186]
[1718286863487,0.17,150.55,150.47,2.4589]
[1718286863682,0.34,150.55,150.47,2.4589]
[1718286863849,0.34,150.55,150.48,2.4587]
[1718286864057,0.34,150.55,150.47,2.4589]
[1718286864477,0.17,150.55,150.47,2.4589]
[1718286864651,0.17,150.55,150.48,2.4587]
[1718286864856,0.34,150.56,150.48,2.4587]
[1718286865266,2.7975,150.56,150.47,2.4589]
[1718286865663,0.34,150.56,150.45,0.17]
[1718286865877,0.68,150.57,150.46,2.4591]
[1718286866081,2.458,150.53,150.43,2.4594]
[1718286866278,2.458,150.53,150.44,2.4594]
[1718286867285,2.6278,150.54,150.44,2.4594]
[1718286867469,2.7978,150.54,150.44,2.4594]
[1718286867783,2.7978,150.54,150.45,2.4592]
[1718286867784,0.34,150.54,150.45,2.4592]
[1718286868075,30.17,150.58,150.47,2.4588]
[1718286868282,2.4574,150.56,150.47,2.4588]
[1718286868585,2.6276,150.55,150.46,2.459]
[1718286870189,0.17,150.55,150.47,2.4589]
[1718286870360,2.6276,150.55,150.47,2.4589]
[1718286871582,2.6276,150.55,150.46,2.459]
[1718286871762,2.6276,150.55,150.44,0.17]
[1718286871763,2.4578,150.54,150.44,0.17]
[1718286872089,2.4578,150.54,150.45,2.4592]
[1718286872474,2.4578,150.54,150.46,2.459]
[1718286872786,2.6277,150.55,150.46,2.459]
[1718286872990,2.4578,150.54,150.46,2.459]
[1718286873990,0.34,150.53,150.42,6.3392]
[1718286874289,3.1379,150.53,150.45,2.4591]
[1718286874501,2.7979,150.53,150.45,2.4591]
[1718286874789,0.17,150.53,150.46,2.459]
[1718286874971,2.4579,150.54,150.46,2.459]
[1718286875183,0.17,150.53,150.47,2.4589]
[1718286875368,0.17,150.54,150.47,2.4589]
[1718286875565,2.6278,150.54,150.46,2.459]
[1718286875970,2.4579,150.53,150.45,2.4591]
[1718286876175,2.6281,150.52,150.42,28.8078]
[1718286876386,2.4581,150.52,150.44,2.4593]
[1718286876579,0.17,150.51,150.45,2.4592]
[1718286876784,0.17,150.51,150.44,2.4593]
[1718286877175,0.17,150.51,150.45,2.4592]
[1718286877668,2.6281,150.52,150.44,2.4593]
[1718286877987,2.6281,150.52,150.45,2.4592]
[1718286878205,0.17,150.52,150.45,2.4592]
[1718286880278,0.17,150.52,150.46,2.4591]
[1718286881092,0.34,150.53,150.46,2.4591]
[1718286882295,2.4575,150.56,150.48,2.4587]
[1718286882972,2.4578,150.54,150.46,2.459]
[1718286884106,2.4578,150.54,150.47,2.4589]
[1718286884291,2.7977,150.55,150.47,2.4589]
[1718286884691,0.17,150.55,150.48,2.4587]
[1718286884883,20.0,150.57,150.51,2.4582]
[1718286885205,30.0,150.58,150.51,2.4583]
[1718286885781,32.4571,150.58,150.5,2.4583]
[1718286886191,30.0,150.58,150.51,2.4582]
[1718286886599,32.4572,150.58,150.5,2.4584]
[1718286886991,2.4573,150.57,150.49,2.4585]
[1718286887495,2.6272,150.58,150.5,2.4584]
[1718286887809,0.17,150.57,150.5,2.4584]
[1718286888286,8.8746,150.59,150.51,2.4582]
[1718286888603,0.17,150.58,150.51,2.4582]
[1718286888813,2.6272,150.58,150.5,2.4584]
[1718286889489,0.17,150.58,150.51,2.4581]
[1718286889807,0.17,150.58,150.52,2.4581]
[1718286890004,0.17,150.58,150.5,2.4584]
[1718286890005,2.6272,150.58,150.5,2.4584]